[Event "Chessable Masters - Torneo preliminare"]
[White "Abdusattorov, Nodirbek"]
[Black "Gukesh, D"]
[WhiteFideId "14204118"]
[BlackFideId "46616543"]
[WhiteElo "2714"]
[BlackElo "2629"]
[Result "1-0"]
[Round "7"]
[TimeControl "600+2"]
[Date "2023.03.13"]
[WhiteClock "0:00:25"]
[BlackClock "0:00:06"]

1. e4 {[%clk 0:09:59]}  c6 {[%clk 0:09:58]} 2. d4 {[%clk 0:09:53]}  d5 {[%clk 0:09:59]} 3. e5 {[%clk 0:09:54]}  Bf5 {[%clk 0:10:00]} 4. Nc3 {[%clk 0:09:56]}  e6 {[%clk 0:09:48]} 5. g4 {[%clk 0:09:57]}  Bg6 {[%clk 0:09:49]} 6. Nge2 {[%clk 0:09:56]}  c5 {[%clk 0:09:42]} 7. h4 {[%clk 0:09:53]}  Nc6 {[%clk 0:09:33]} 8. h5 {[%clk 0:09:44]}  Be4 {[%clk 0:09:33]} 9. Nxe4 {[%clk 0:09:44]}  dxe4 {[%clk 0:09:35]} 10. c3 {[%clk 0:09:01]}  cxd4 {[%clk 0:08:58]} 11. Nxd4 {[%clk 0:08:19]}  Bc5 {[%clk 0:07:03]} 12. Nxc6 {[%clk 0:07:49]}  Bxf2+ {[%clk 0:07:03]} 13. Ke2 {[%clk 0:07:48]}  Qxd1+ {[%clk 0:07:04]} 14. Kxd1 {[%clk 0:07:50]}  bxc6 {[%clk 0:07:05]} 15. Bf4 {[%clk 0:07:01]}  Ne7 {[%clk 0:07:00]} 16. Ke2 {[%clk 0:07:00]}  Bc5 {[%clk 0:06:38]} 17. Bg2 {[%clk 0:06:30]}  Nd5 {[%clk 0:06:39]} 18. Bg3 {[%clk 0:06:26]}  Rb8 {[%clk 0:06:31]} 19. Rab1 {[%clk 0:06:26]}  Ba3 {[%clk 0:06:29]} 20. c4 {[%clk 0:06:26]}  Rxb2+ {[%clk 0:04:40]} 21. Rxb2 {[%clk 0:06:26]}  Nc3+ {[%clk 0:04:41]} 22. Kd2 {[%clk 0:06:23]}  Bxb2 {[%clk 0:04:43]} 23. Kc2 {[%clk 0:03:46]}  Ne2 {[%clk 0:04:44]} 24. Kxb2 {[%clk 0:03:46]}  Nxg3 {[%clk 0:04:44]} 25. Re1 {[%clk 0:03:13]}  Kd7 {[%clk 0:04:45]} 26. Re3 {[%clk 0:03:09]}  Nf5 {[%clk 0:04:45]} 27. Ra3 {[%clk 0:02:52]}  Rb8+ {[%clk 0:04:40]} 28. Kc3 {[%clk 0:02:52]}  Rb7 {[%clk 0:04:34]} 29. gxf5 {[%clk 0:02:44]}  exf5 {[%clk 0:04:36]} 30. Ra6 {[%clk 0:02:30]}  Ke6 {[%clk 0:04:11]} 31. Rxc6+ {[%clk 0:02:28]}  Kxe5 {[%clk 0:04:13]} 32. Rc8 {[%clk 0:02:29]}  g5 {[%clk 0:04:13]} 33. Re8+ {[%clk 0:02:23]}  Kf4 {[%clk 0:04:12]} 34. c5 {[%clk 0:02:25]}  Rb1 {[%clk 0:03:42]} 35. Re7 {[%clk 0:02:10]}  Kg3 {[%clk 0:03:04]} 36. Bxe4 {[%clk 0:01:55]}  fxe4 {[%clk 0:03:04]} 37. Rxf7 {[%clk 0:01:45]}  h6 {[%clk 0:01:22]} 38. Kd4 {[%clk 0:01:41]}  Rb4+ {[%clk 0:01:16]} 39. Ke3 {[%clk 0:01:22]}  Rc4 {[%clk 0:01:15]} 40. Rf6 {[%clk 0:00:53]}  Rxc5 {[%clk 0:01:04]} 41. Rxh6 {[%clk 0:00:54]}  Ra5 {[%clk 0:00:55]} 42. Kxe4 {[%clk 0:00:34]}  Rxa2 {[%clk 0:00:54]} 43. Rc6 {[%clk 0:00:31]}  Rh2 {[%clk 0:00:34]} 44. Kf5 {[%clk 0:00:31]}  Rh1 {[%clk 0:00:26]} 45. Kxg5 {[%clk 0:00:27]}  Kf3 {[%clk 0:00:11]} 46. h6 {[%clk 0:00:23]}  Rg1+ {[%clk 0:00:08]} 47. Kf6 {[%clk 0:00:23]}  Rh1 {[%clk 0:00:09]} 48. Kg7 {[%clk 0:00:25]}  Ke4 {[%clk 0:00:06]} 49. h7 {[%clk 0:00:25]} 1-0


[Site "Internet"]

[Event "Chessable Masters - Torneo preliminare"]
[White "Dubov, Daniil"]
[Black "Yakubboev, Nodirbek"]
[WhiteFideId "24126055"]
[BlackFideId "14203987"]
[WhiteElo "2727"]
[BlackElo "2577"]
[Result "1/2-1/2"]
[Round "7"]
[TimeControl "600+2"]
[Date "2023.03.13"]
[WhiteClock "0:01:41"]
[BlackClock "0:04:53"]

1. d4 {[%clk 0:10:01]}  Nf6 {[%clk 0:10:00]} 2. c4 {[%clk 0:10:02]}  e6 {[%clk 0:09:58]} 3. Nc3 {[%clk 0:10:03]}  Bb4 {[%clk 0:09:58]} 4. e3 {[%clk 0:10:04]}  O-O {[%clk 0:09:58]} 5. Bd3 {[%clk 0:10:04]}  d5 {[%clk 0:09:59]} 6. a3 {[%clk 0:10:01]}  Bxc3+ {[%clk 0:09:59]} 7. bxc3 {[%clk 0:10:02]}  dxc4 {[%clk 0:10:01]} 8. Bxc4 {[%clk 0:10:04]}  c5 {[%clk 0:10:02]} 9. Ne2 {[%clk 0:10:04]}  Qc7 {[%clk 0:10:01]} 10. Ba2 {[%clk 0:10:05]}  b6 {[%clk 0:09:59]} 11. O-O {[%clk 0:10:03]}  Rd8 {[%clk 0:09:50]} 12. Bb2 {[%clk 0:10:00]}  Ba6 {[%clk 0:09:27]} 13. Rc1 {[%clk 0:09:56]}  Nc6 {[%clk 0:09:18]} 14. c4 {[%clk 0:09:54]}  Ne7 {[%clk 0:08:50]} 15. Ng3 {[%clk 0:09:39]}  Bb7 {[%clk 0:08:37]} 16. d5 {[%clk 0:09:20]}  exd5 {[%clk 0:08:10]} 17. Bxf6 {[%clk 0:09:19]}  gxf6 {[%clk 0:08:11]} 18. cxd5 {[%clk 0:08:04]}  Bxd5 {[%clk 0:07:46]} 19. Bxd5 {[%clk 0:06:38]}  Rxd5 {[%clk 0:07:40]} 20. Qf3 {[%clk 0:06:40]}  Qe5 {[%clk 0:07:39]} 21. Rc4 {[%clk 0:06:22]}  f5 {[%clk 0:07:14]} 22. e4 {[%clk 0:05:55]}  Rd4 {[%clk 0:07:14]} 23. Rxd4 {[%clk 0:05:21]}  cxd4 {[%clk 0:07:15]} 24. exf5 {[%clk 0:05:21]}  Rd8 {[%clk 0:07:16]} 25. Rd1 {[%clk 0:03:42]}  Kh8 {[%clk 0:05:39]} 26. h4 {[%clk 0:03:13]}  Nd5 {[%clk 0:05:13]} 27. Ne4 {[%clk 0:02:41]}  f6 {[%clk 0:04:53]} 28. h5 {[%clk 0:01:41]} 1/2-1/2


[Site "Internet"]

[Event "Chessable Masters - Torneo preliminare"]
[White "Vachier-Lagrave, Maxime"]
[Black "Pantsulaia, Levan"]
[WhiteFideId "623539"]
[BlackFideId "13602071"]
[WhiteElo "2762"]
[BlackElo "2533"]
[Result "1-0"]
[Round "7"]
[TimeControl "600+2"]
[Date "2023.03.13"]
[WhiteClock "0:03:44"]
[BlackClock "0:00:21"]

1. e4 {[%clk 0:10:01]}  c6 {[%clk 0:10:00]} 2. d4 {[%clk 0:09:53]}  d5 {[%clk 0:10:02]} 3. e5 {[%clk 0:09:54]}  Bf5 {[%clk 0:10:01]} 4. Nf3 {[%clk 0:09:56]}  e6 {[%clk 0:10:01]} 5. Be2 {[%clk 0:09:57]}  Nd7 {[%clk 0:09:46]} 6. O-O {[%clk 0:09:52]}  a5 {[%clk 0:09:47]} 7. a4 {[%clk 0:09:44]}  f6 {[%clk 0:09:46]} 8. exf6 {[%clk 0:09:38]}  Ngxf6 {[%clk 0:08:52]} 9. Nh4 {[%clk 0:09:35]}  Bd6 {[%clk 0:08:43]} 10. Nxf5 {[%clk 0:09:34]}  exf5 {[%clk 0:08:45]} 11. Bd3 {[%clk 0:09:33]}  g6 {[%clk 0:08:35]} 12. Re1+ {[%clk 0:09:33]}  Kf7 {[%clk 0:08:36]} 13. Nd2 {[%clk 0:09:35]}  Ne4 {[%clk 0:08:20]} 14. Nf3 {[%clk 0:09:27]}  Re8 {[%clk 0:07:52]} 15. c4 {[%clk 0:09:23]}  dxc4 {[%clk 0:06:25]} 16. Bxc4+ {[%clk 0:09:22]}  Kg7 {[%clk 0:06:25]} 17. Qb3 {[%clk 0:07:12]}  Qb6 {[%clk 0:06:12]} 18. Qc2 {[%clk 0:07:02]}  Ndf6 {[%clk 0:06:07]} 19. h3 {[%clk 0:06:56]}  Nd5 {[%clk 0:05:54]} 20. Be3 {[%clk 0:06:46]}  Bb4 {[%clk 0:05:34]} 21. Bxd5 {[%clk 0:05:40]}  cxd5 {[%clk 0:04:19]} 22. Rec1 {[%clk 0:05:40]}  Bd6 {[%clk 0:04:17]} 23. Ne5 {[%clk 0:05:41]}  Rac8 {[%clk 0:03:47]} 24. Qd3 {[%clk 0:05:37]}  h6 {[%clk 0:02:44]} 25. g3 {[%clk 0:05:12]}  Rcd8 {[%clk 0:02:03]} 26. Rd1 {[%clk 0:04:40]}  Qa6 {[%clk 0:01:40]} 27. Qb3 {[%clk 0:04:33]}  Nf6 {[%clk 0:01:05]} 28. Rac1 {[%clk 0:04:29]}  Re7 {[%clk 0:01:05]} 29. Rc2 {[%clk 0:04:00]}  Rc7 {[%clk 0:00:43]} 30. Rxc7+ {[%clk 0:03:58]}  Bxc7 {[%clk 0:00:45]} 31. Rc1 {[%clk 0:03:58]}  Bd6 {[%clk 0:00:46]} 32. Bxh6+ {[%clk 0:03:52]}  Kh7 {[%clk 0:00:44]} 33. Bg5 {[%clk 0:03:51]}  Rf8 {[%clk 0:00:39]} 34. Bxf6 {[%clk 0:03:47]}  Rxf6 {[%clk 0:00:41]} 35. Qxd5 {[%clk 0:03:48]}  Kg7 {[%clk 0:00:21]} 36. Rc8 {[%clk 0:03:44]} 1-0


[Site "Internet"]

[Event "Chessable Masters - Torneo preliminare"]
[White "Lazavik, Denis"]
[Black "Chigaev, Maksim"]
[WhiteFideId "13515110"]
[BlackFideId "4108116"]
[WhiteElo "2488"]
[BlackElo "2568"]
[Result "1/2-1/2"]
[Round "7"]
[TimeControl "600+2"]
[Date "2023.03.13"]
[WhiteClock "0:00:13"]
[BlackClock "0:00:12"]

1. d4 {[%clk 0:10:00]}  Nf6 {[%clk 0:09:52]} 2. c4 {[%clk 0:10:01]}  g6 {[%clk 0:09:53]} 3. g3 {[%clk 0:10:02]}  c5 {[%clk 0:09:26]} 4. dxc5 {[%clk 0:10:02]}  Bg7 {[%clk 0:09:18]} 5. Bg2 {[%clk 0:10:01]}  Qa5+ {[%clk 0:09:14]} 6. Nc3 {[%clk 0:10:00]}  Qxc5 {[%clk 0:09:15]} 7. Bd2 {[%clk 0:10:00]}  O-O {[%clk 0:09:11]} 8. Rc1 {[%clk 0:09:26]}  Nc6 {[%clk 0:09:10]} 9. b3 {[%clk 0:09:24]}  Rd8 {[%clk 0:08:56]} 10. e4 {[%clk 0:08:13]}  Nb4 {[%clk 0:08:46]} 11. Qe2 {[%clk 0:07:30]}  Qd6 {[%clk 0:08:46]} 12. Kf1 {[%clk 0:06:39]}  Qd3 {[%clk 0:08:46]} 13. Nh3 {[%clk 0:05:27]}  d6 {[%clk 0:08:14]} 14. Nf4 {[%clk 0:05:26]}  Qxe2+ {[%clk 0:08:15]} 15. Kxe2 {[%clk 0:05:27]}  Bg4+ {[%clk 0:08:16]} 16. f3 {[%clk 0:05:26]}  Bd7 {[%clk 0:08:17]} 17. Rhd1 {[%clk 0:05:16]}  Kf8 {[%clk 0:08:15]} 18. Be3 {[%clk 0:05:01]}  Nc6 {[%clk 0:08:06]} 19. Kf2 {[%clk 0:04:50]}  Be8 {[%clk 0:08:00]} 20. Bf1 {[%clk 0:04:42]}  Rac8 {[%clk 0:07:56]} 21. Be2 {[%clk 0:04:36]}  Nd7 {[%clk 0:07:37]} 22. g4 {[%clk 0:04:31]}  h6 {[%clk 0:06:59]} 23. h4 {[%clk 0:04:30]}  Nc5 {[%clk 0:06:54]} 24. Nd3 {[%clk 0:03:54]}  b6 {[%clk 0:06:17]} 25. Nd5 {[%clk 0:02:27]}  Nd4 {[%clk 0:04:48]} 26. Bf1 {[%clk 0:02:22]}  Nc6 {[%clk 0:04:17]} 27. g5 {[%clk 0:02:04]}  h5 {[%clk 0:04:13]} 28. N3f4 {[%clk 0:01:40]}  e6 {[%clk 0:03:48]} 29. Nf6 {[%clk 0:01:26]}  Ke7 {[%clk 0:03:41]} 30. Ne2 {[%clk 0:01:14]}  Nd7 {[%clk 0:02:25]} 31. Nxe8 {[%clk 0:01:06]}  Kxe8 {[%clk 0:01:46]} 32. Rxd6 {[%clk 0:00:53]}  Nc5 {[%clk 0:01:32]} 33. Rcd1 {[%clk 0:00:46]}  Rxd6 {[%clk 0:00:48]} 34. Rxd6 {[%clk 0:00:48]}  Nb4 {[%clk 0:00:41]} 35. Nc1 {[%clk 0:00:43]}  Bb2 {[%clk 0:00:28]} 36. Bxc5 {[%clk 0:00:18]}  bxc5 {[%clk 0:00:23]} 37. Nd3 {[%clk 0:00:20]}  Ke7 {[%clk 0:00:22]} 38. e5 {[%clk 0:00:14]}  Nxd3+ {[%clk 0:00:08]} 39. Bxd3 {[%clk 0:00:14]}  Bxe5 {[%clk 0:00:09]} 40. Ra6 {[%clk 0:00:16]}  Rc7 {[%clk 0:00:09]} 41. Be4 {[%clk 0:00:15]}  Bf4 {[%clk 0:00:08]} 42. a3 {[%clk 0:00:14]}  Bd6 {[%clk 0:00:06]} 43. Ra5 {[%clk 0:00:10]}  Kd7 {[%clk 0:00:07]} 44. Ra6 {[%clk 0:00:11]}  Ke7 {[%clk 0:00:08]} 45. Ra5 {[%clk 0:00:11]}  Kd7 {[%clk 0:00:10]} 46. Ra6 {[%clk 0:00:13]}  Ke7 {[%clk 0:00:12]} 1/2-1/2


[Site "Internet"]

[Event "Chessable Masters - Torneo preliminare"]
[White "Keymer, Vincent"]
[Black "Alonso Rosell, Alvar"]
[WhiteFideId "12940690"]
[BlackFideId "2270544"]
[WhiteElo "2630"]
[BlackElo "2473"]
[Result "1/2-1/2"]
[Round "7"]
[TimeControl "600+2"]
[Date "2023.03.13"]
[WhiteClock "0:00:06"]
[BlackClock "0:00:22"]

1. Nf3 {[%clk 0:10:01]}  d5 {[%clk 0:09:58]} 2. e3 {[%clk 0:10:02]}  Nf6 {[%clk 0:09:46]} 3. c4 {[%clk 0:10:03]}  e6 {[%clk 0:09:46]} 4. Nc3 {[%clk 0:10:04]}  b6 {[%clk 0:09:43]} 5. cxd5 {[%clk 0:10:05]}  exd5 {[%clk 0:09:35]} 6. g3 {[%clk 0:10:06]}  Bd6 {[%clk 0:09:15]} 7. Bg2 {[%clk 0:10:07]}  O-O {[%clk 0:09:12]} 8. O-O {[%clk 0:10:07]}  Re8 {[%clk 0:08:53]} 9. Re1 {[%clk 0:10:03]}  Bb7 {[%clk 0:08:51]} 10. b3 {[%clk 0:10:03]}  Nbd7 {[%clk 0:08:18]} 11. Bb2 {[%clk 0:10:04]}  a6 {[%clk 0:08:19]} 12. Rc1 {[%clk 0:10:05]}  Qe7 {[%clk 0:08:18]} 13. d3 {[%clk 0:10:05]}  Rad8 {[%clk 0:08:09]} 14. Re2 {[%clk 0:10:02]}  Ne5 {[%clk 0:08:02]} 15. Rec2 {[%clk 0:09:54]}  Nxf3+ {[%clk 0:07:46]} 16. Qxf3 {[%clk 0:09:47]}  Ba8 {[%clk 0:07:39]} 17. d4 {[%clk 0:09:06]}  Ne4 {[%clk 0:07:26]} 18. a4 {[%clk 0:08:59]}  Nxc3 {[%clk 0:07:14]} 19. Bxc3 {[%clk 0:08:44]}  a5 {[%clk 0:07:03]} 20. Bb2 {[%clk 0:08:43]}  Qg5 {[%clk 0:06:32]} 21. Ra1 {[%clk 0:08:16]}  Qg6 {[%clk 0:05:55]} 22. Qd1 {[%clk 0:08:10]}  h5 {[%clk 0:05:11]} 23. Ba3 {[%clk 0:08:06]}  h4 {[%clk 0:05:12]} 24. Bxd6 {[%clk 0:08:01]}  Qxd6 {[%clk 0:05:14]} 25. gxh4 {[%clk 0:07:23]}  Re6 {[%clk 0:04:26]} 26. h5 {[%clk 0:07:22]}  Bb7 {[%clk 0:04:24]} 27. Qg4 {[%clk 0:07:18]}  c6 {[%clk 0:03:57]} 28. Kh1 {[%clk 0:07:15]}  Rh6 {[%clk 0:02:59]} 29. Qg5 {[%clk 0:06:45]}  Re8 {[%clk 0:02:27]} 30. Rg1 {[%clk 0:06:40]}  Bc8 {[%clk 0:01:54]} 31. Bf3 {[%clk 0:04:35]}  Qf6 {[%clk 0:01:53]} 32. Qxf6 {[%clk 0:04:35]}  Rxf6 {[%clk 0:01:54]} 33. Kg2 {[%clk 0:04:33]}  Bf5 {[%clk 0:01:42]} 34. Rc3 {[%clk 0:04:32]}  Ree6 {[%clk 0:00:47]} 35. Rgc1 {[%clk 0:03:49]}  Be4 {[%clk 0:00:35]} 36. Bxe4 {[%clk 0:03:48]}  dxe4 {[%clk 0:00:37]} 37. Rc4 {[%clk 0:02:58]}  Rh6 {[%clk 0:00:36]} 38. h3 {[%clk 0:02:59]}  Kf8 {[%clk 0:00:28]} 39. b4 {[%clk 0:02:46]}  axb4 {[%clk 0:00:17]} 40. Rxb4 {[%clk 0:02:48]}  Rxh5 {[%clk 0:00:17]} 41. Rxb6 {[%clk 0:02:48]}  Rg6+ {[%clk 0:00:19]} 42. Kf1 {[%clk 0:02:12]}  Rxh3 {[%clk 0:00:20]} 43. Rbxc6 {[%clk 0:02:03]}  Rxc6 {[%clk 0:00:10]} 44. Rxc6 {[%clk 0:02:04]}  Rh1+ {[%clk 0:00:12]} 45. Kg2 {[%clk 0:01:33]}  Ra1 {[%clk 0:00:13]} 46. Rc5 {[%clk 0:01:08]}  Rxa4 {[%clk 0:00:13]} 47. Re5 {[%clk 0:01:09]}  g6 {[%clk 0:00:12]} 48. Rxe4 {[%clk 0:01:10]}  Ra5 {[%clk 0:00:12]} 49. Kf3 {[%clk 0:01:10]}  Rf5+ {[%clk 0:00:12]} 50. Rf4 {[%clk 0:01:05]}  Ra5 {[%clk 0:00:14]} 51. Rh4 {[%clk 0:00:56]}  Ke7 {[%clk 0:00:15]} 52. Ke4 {[%clk 0:00:50]}  f5+ {[%clk 0:00:14]} 53. Kf3 {[%clk 0:00:44]}  g5 {[%clk 0:00:14]} 54. Rh6 {[%clk 0:00:44]}  Ra2 {[%clk 0:00:13]} 55. Rg6 {[%clk 0:00:44]}  g4+ {[%clk 0:00:12]} 56. Kg3 {[%clk 0:00:45]}  Kf7 {[%clk 0:00:13]} 57. Rh6 {[%clk 0:00:37]}  Rd2 {[%clk 0:00:14]} 58. Rh2 {[%clk 0:00:34]}  Kg6 {[%clk 0:00:13]} 59. Rg2 {[%clk 0:00:20]}  Rd3 {[%clk 0:00:10]} 60. Kf4 {[%clk 0:00:19]}  Kf6 {[%clk 0:00:09]} 61. f3 {[%clk 0:00:10]}  gxf3 {[%clk 0:00:10]} 62. Kxf3 {[%clk 0:00:12]}  Rd1 {[%clk 0:00:11]} 63. Ra2 {[%clk 0:00:12]}  Rf1+ {[%clk 0:00:12]} 64. Ke2 {[%clk 0:00:13]}  Rb1 {[%clk 0:00:13]} 65. Ra6+ {[%clk 0:00:14]}  Ke7 {[%clk 0:00:14]} 66. Rc6 {[%clk 0:00:12]}  Kd7 {[%clk 0:00:13]} 67. Rf6 {[%clk 0:00:13]}  Rb5 {[%clk 0:00:14]} 68. Kf3 {[%clk 0:00:14]}  Ke7 {[%clk 0:00:15]} 69. Ra6 {[%clk 0:00:13]}  Rb1 {[%clk 0:00:13]} 70. Kf4 {[%clk 0:00:14]}  Re1 {[%clk 0:00:14]} 71. d5 {[%clk 0:00:12]}  Kd7 {[%clk 0:00:14]} 72. Rf6 {[%clk 0:00:06]}  Rf1+ {[%clk 0:00:15]} 73. Ke5 {[%clk 0:00:06]}  Rf3 {[%clk 0:00:16]} 74. Rf7+ {[%clk 0:00:04]}  Ke8 {[%clk 0:00:17]} 75. Rxf5 {[%clk 0:00:05]}  Rxe3+ {[%clk 0:00:18]} 76. Kd6 {[%clk 0:00:07]}  Ra3 {[%clk 0:00:11]} 77. Re5+ {[%clk 0:00:03]}  Kd8 {[%clk 0:00:12]} 78. Ke6 {[%clk 0:00:05]}  Rh3 {[%clk 0:00:11]} 79. Kd6 {[%clk 0:00:03]}  Ra3 {[%clk 0:00:11]} 80. Rf5 {[%clk 0:00:03]}  Ra6+ {[%clk 0:00:12]} 81. Ke5 {[%clk 0:00:05]}  Ke7 {[%clk 0:00:13]} 82. Rh5 {[%clk 0:00:06]}  Rb6 {[%clk 0:00:14]} 83. Rh7+ {[%clk 0:00:06]}  Ke8 {[%clk 0:00:16]} 84. Rg7 {[%clk 0:00:07]}  Kd8 {[%clk 0:00:16]} 85. Rf7 {[%clk 0:00:09]}  Ke8 {[%clk 0:00:18]} 86. Rf4 {[%clk 0:00:09]}  Ke7 {[%clk 0:00:18]} 87. Ra4 {[%clk 0:00:09]}  Rh6 {[%clk 0:00:18]} 88. Ra7+ {[%clk 0:00:08]}  Ke8 {[%clk 0:00:19]} 89. Kd4 {[%clk 0:00:10]}  Kd8 {[%clk 0:00:19]} 90. Kc5 {[%clk 0:00:11]}  Kc8 {[%clk 0:00:21]} 91. Re7 {[%clk 0:00:11]}  Kd8 {[%clk 0:00:22]} 92. Re5 {[%clk 0:00:11]}  Kc7 {[%clk 0:00:23]} 93. Re6 {[%clk 0:00:10]}  Rh1 {[%clk 0:00:18]} 94. Re7+ {[%clk 0:00:10]}  Kd8 {[%clk 0:00:19]} 95. Kd6 {[%clk 0:00:09]}  Ra1 {[%clk 0:00:19]} 96. Rc7 {[%clk 0:00:09]}  Ra6+ {[%clk 0:00:19]} 97. Rc6 {[%clk 0:00:10]}  Ra1 {[%clk 0:00:20]} 98. Rb6 {[%clk 0:00:11]}  Kc8 {[%clk 0:00:18]} 99. Ke7 {[%clk 0:00:11]}  Re1+ {[%clk 0:00:19]} 100. Re6 {[%clk 0:00:12]}  Rh1 {[%clk 0:00:19]} 101. Rc6+ {[%clk 0:00:09]}  Kb7 {[%clk 0:00:20]} 102. Rf6 {[%clk 0:00:10]}  Kc8 {[%clk 0:00:14]} 103. Rf8+ {[%clk 0:00:08]}  Kc7 {[%clk 0:00:13]} 104. d6+ {[%clk 0:00:09]}  Kc6 {[%clk 0:00:14]} 105. Rc8+ {[%clk 0:00:10]}  Kd5 {[%clk 0:00:16]} 106. d7 {[%clk 0:00:05]}  Rh7+ {[%clk 0:00:17]} 107. Ke8 {[%clk 0:00:06]}  Rh8+ {[%clk 0:00:18]} 108. Kf7 {[%clk 0:00:04]}  Rh7+ {[%clk 0:00:19]} 109. Ke8 {[%clk 0:00:05]}  Rh8+ {[%clk 0:00:21]} 110. Ke7 {[%clk 0:00:06]}  Rh7+ {[%clk 0:00:22]} 111. Ke8 {[%clk 0:00:06]} 1/2-1/2


[Site "Internet"]

[Event "Chessable Masters - Torneo preliminare"]
[White "Kramnik, Vladimir"]
[Black "Anton Guijarro, David"]
[WhiteFideId "4101588"]
[BlackFideId "2285525"]
[WhiteElo "2756"]
[BlackElo "2635"]
[Result "1-0"]
[Round "7"]
[TimeControl "600+2"]
[Date "2023.03.13"]
[WhiteClock "0:03:52"]
[BlackClock "0:02:23"]

1. c4 {[%clk 0:10:01]}  e5 {[%clk 0:09:58]} 2. Nc3 {[%clk 0:10:02]}  Bb4 {[%clk 0:09:56]} 3. Nd5 {[%clk 0:10:03]}  a5 {[%clk 0:09:53]} 4. Nf3 {[%clk 0:09:59]}  d6 {[%clk 0:09:04]} 5. a3 {[%clk 0:09:59]}  Bc5 {[%clk 0:09:04]} 6. e3 {[%clk 0:10:00]}  c6 {[%clk 0:09:06]} 7. d4 {[%clk 0:10:00]}  Ba7 {[%clk 0:09:06]} 8. Nc3 {[%clk 0:10:00]}  Nd7 {[%clk 0:09:08]} 9. dxe5 {[%clk 0:09:58]}  dxe5 {[%clk 0:09:06]} 10. b4 {[%clk 0:09:58]}  Ngf6 {[%clk 0:09:03]} 11. Bd3 {[%clk 0:09:57]}  Qe7 {[%clk 0:08:58]} 12. Qc2 {[%clk 0:09:58]}  O-O {[%clk 0:08:55]} 13. O-O {[%clk 0:09:58]}  Re8 {[%clk 0:08:48]} 14. Nd2 {[%clk 0:09:58]}  Bb8 {[%clk 0:08:26]} 15. Rb1 {[%clk 0:09:56]}  h5 {[%clk 0:07:59]} 16. h3 {[%clk 0:09:47]}  h4 {[%clk 0:07:44]} 17. Rd1 {[%clk 0:09:26]}  g6 {[%clk 0:05:50]} 18. c5 {[%clk 0:09:22]}  axb4 {[%clk 0:05:51]} 19. axb4 {[%clk 0:09:21]}  Nf8 {[%clk 0:05:50]} 20. Bb2 {[%clk 0:08:34]}  N8h7 {[%clk 0:05:41]} 21. Nde4 {[%clk 0:08:08]}  Nxe4 {[%clk 0:05:41]} 22. Nxe4 {[%clk 0:08:05]}  Ng5 {[%clk 0:05:41]} 23. Nd6 {[%clk 0:07:19]}  Bxd6 {[%clk 0:05:37]} 24. cxd6 {[%clk 0:07:19]}  Qxd6 {[%clk 0:05:38]} 25. f4 {[%clk 0:06:49]}  Nh7 {[%clk 0:04:27]} 26. Bc4 {[%clk 0:06:48]}  Qf6 {[%clk 0:03:58]} 27. Bxe5 {[%clk 0:06:47]}  Qf5 {[%clk 0:03:49]} 28. e4 {[%clk 0:06:40]}  Qh5 {[%clk 0:03:50]} 29. Bb2 {[%clk 0:06:05]}  Be6 {[%clk 0:03:23]} 30. Qc3 {[%clk 0:06:01]}  f6 {[%clk 0:03:24]} 31. Rd6 {[%clk 0:05:48]}  Bxc4 {[%clk 0:03:02]} 32. Qxc4+ {[%clk 0:05:49]}  Kf8 {[%clk 0:02:56]} 33. Bxf6 {[%clk 0:05:01]}  Qb5 {[%clk 0:02:54]} 34. Bg7+ {[%clk 0:03:49]}  Kxg7 {[%clk 0:02:50]} 35. Rd7+ {[%clk 0:03:49]}  Kh6 {[%clk 0:02:33]} 36. Qf7 {[%clk 0:03:50]}  Rh8 {[%clk 0:02:20]} 37. Qg7+ {[%clk 0:03:50]}  Kh5 {[%clk 0:02:21]} 38. Qxh7+ {[%clk 0:03:51]}  Rxh7 {[%clk 0:02:23]} 39. Rxh7# {[%clk 0:03:52]} 1-0


[Site "Internet"]

[Event "Chessable Masters - Torneo preliminare"]
[White "Firouzja, Alireza"]
[Black "Vokhidov, Shamsiddin"]
[WhiteFideId "12573981"]
[BlackFideId "14204223"]
[WhiteElo "2745"]
[BlackElo "2514"]
[Result "1/2-1/2"]
[Round "7"]
[TimeControl "600+2"]
[Date "2023.03.13"]
[WhiteClock "0:00:12"]
[BlackClock "0:00:15"]

1. e4 {[%clk 0:10:01]}  c5 {[%clk 0:09:57]} 2. Nf3 {[%clk 0:10:01]}  e6 {[%clk 0:09:58]} 3. d4 {[%clk 0:09:56]}  cxd4 {[%clk 0:10:00]} 4. Nxd4 {[%clk 0:09:58]}  Nc6 {[%clk 0:10:01]} 5. Nc3 {[%clk 0:09:59]}  Qc7 {[%clk 0:10:02]} 6. Be2 {[%clk 0:09:44]}  a6 {[%clk 0:10:01]} 7. Nxc6 {[%clk 0:09:44]}  bxc6 {[%clk 0:09:58]} 8. Qd3 {[%clk 0:09:44]}  d5 {[%clk 0:09:56]} 9. Qg3 {[%clk 0:09:43]}  Qxg3 {[%clk 0:09:57]} 10. hxg3 {[%clk 0:09:44]}  Nf6 {[%clk 0:09:59]} 11. exd5 {[%clk 0:09:19]}  cxd5 {[%clk 0:09:29]} 12. Na4 {[%clk 0:08:52]}  Bb7 {[%clk 0:09:07]} 13. Bf4 {[%clk 0:08:48]}  Nd7 {[%clk 0:08:59]} 14. Bf3 {[%clk 0:07:37]}  Bc6 {[%clk 0:08:31]} 15. Nc3 {[%clk 0:07:36]}  g6 {[%clk 0:08:07]} 16. O-O-O {[%clk 0:07:22]}  Bg7 {[%clk 0:08:07]} 17. Bd6 {[%clk 0:07:18]}  O-O-O {[%clk 0:06:59]} 18. Be2 {[%clk 0:06:30]}  Kb7 {[%clk 0:06:48]} 19. Rh4 {[%clk 0:06:31]}  d4 {[%clk 0:06:30]} 20. Ne4 {[%clk 0:05:57]}  f5 {[%clk 0:05:35]} 21. Ng5 {[%clk 0:05:32]}  Bf6 {[%clk 0:05:33]} 22. Nf7 {[%clk 0:05:09]}  Bxh4 {[%clk 0:05:20]} 23. gxh4 {[%clk 0:05:10]}  e5 {[%clk 0:05:21]} 24. Nxh8 {[%clk 0:04:45]}  Rxh8 {[%clk 0:05:21]} 25. f4 {[%clk 0:04:46]}  Re8 {[%clk 0:04:42]} 26. fxe5 {[%clk 0:04:44]}  Nxe5 {[%clk 0:04:43]} 27. Rxd4 {[%clk 0:04:35]}  Bxg2 {[%clk 0:04:43]} 28. Rb4+ {[%clk 0:04:18]}  Kc6 {[%clk 0:04:43]} 29. Bxe5 {[%clk 0:04:19]}  Rxe5 {[%clk 0:04:44]} 30. Bxa6 {[%clk 0:04:20]}  Be4 {[%clk 0:03:37]} 31. a4 {[%clk 0:04:15]}  Re7 {[%clk 0:03:23]} 32. Kd2 {[%clk 0:03:55]}  h6 {[%clk 0:03:15]} 33. a5 {[%clk 0:03:49]}  g5 {[%clk 0:03:05]} 34. Rb6+ {[%clk 0:03:49]}  Kc7 {[%clk 0:02:59]} 35. Bd3 {[%clk 0:03:23]}  g4 {[%clk 0:02:46]} 36. Bxe4 {[%clk 0:03:16]}  Rxe4 {[%clk 0:02:48]} 37. Rxh6 {[%clk 0:03:16]}  f4 {[%clk 0:02:48]} 38. Rh7+ {[%clk 0:02:55]}  Kb8 {[%clk 0:02:45]} 39. Kd3 {[%clk 0:02:14]}  Re1 {[%clk 0:02:36]} 40. Kd2 {[%clk 0:01:57]}  Re4 {[%clk 0:01:31]} 41. h5 {[%clk 0:01:21]}  f3 {[%clk 0:00:52]} 42. h6 {[%clk 0:00:49]}  g3 {[%clk 0:00:18]} 43. Rg7 {[%clk 0:00:25]}  f2 {[%clk 0:00:11]} 44. h7 {[%clk 0:00:23]}  Rh4 {[%clk 0:00:10]} 45. Ke2 {[%clk 0:00:24]}  Re4+ {[%clk 0:00:10]} 46. Kf3 {[%clk 0:00:16]}  f1=Q+ {[%clk 0:00:06]} 47. Kxe4 {[%clk 0:00:18]}  Qe2+ {[%clk 0:00:06]} 48. Kf4 {[%clk 0:00:07]}  Qf2+ {[%clk 0:00:07]} 49. Kg5 {[%clk 0:00:06]}  Qe3+ {[%clk 0:00:07]} 50. Kh5 {[%clk 0:00:08]}  Qe2+ {[%clk 0:00:05]} 51. Rg4 {[%clk 0:00:07]}  Qe5+ {[%clk 0:00:04]} 52. Rg5 {[%clk 0:00:07]}  Qe8+ {[%clk 0:00:04]} 53. Kh4 {[%clk 0:00:06]}  Qe4+ {[%clk 0:00:04]} 54. Kxg3 {[%clk 0:00:07]}  Qxh7 {[%clk 0:00:06]} 55. c3 {[%clk 0:00:03]}  Ka7 {[%clk 0:00:05]} 56. Rg4 {[%clk 0:00:03]}  Qc7+ {[%clk 0:00:05]} 57. Kf2 {[%clk 0:00:04]}  Qxa5 {[%clk 0:00:07]} 58. Rb4 {[%clk 0:00:04]}  Qe5 {[%clk 0:00:07]} 59. Kf3 {[%clk 0:00:06]}  Ka6 {[%clk 0:00:08]} 60. Kf2 {[%clk 0:00:06]}  Ka5 {[%clk 0:00:10]} 61. Kf3 {[%clk 0:00:08]}  Qe1 {[%clk 0:00:11]} 62. Kf4 {[%clk 0:00:08]}  Qe2 {[%clk 0:00:13]} 63. Kf5 {[%clk 0:00:08]}  Qe3 {[%clk 0:00:14]} 64. Kf6 {[%clk 0:00:09]}  Qf3+ {[%clk 0:00:14]} 65. Ke5 {[%clk 0:00:10]}  Qd3 {[%clk 0:00:15]} 66. Kf4 {[%clk 0:00:12]} 1/2-1/2


[Site "Internet"]